bitfinex/quotes_SOLUSD_20250722
["timestamp","ask_amount","ask_price","bid_price","bid_amount"]
[1753149869177,33.60396285,203.4,203.29,0.66]
[1753149869178,11.78468397,203.38,203.26,0.66]
[1753149871871,0.72,203.37,203.33,11.54473431]
[1753149872175,39.86,203.41,203.36,11.54473431]
[1753149872479,11.54473431,203.38,203.32,11.54473431]
[1753149872681,11.54473431,203.39,203.32,11.54473431]
[1753149872871,12.26473431,203.4,203.34,11.54473431]
[1753149873399,16.78468397,203.38,203.26,11.54473431]
[1753149873581,0.72,203.37,203.24,5.58029128]
[1753149873777,12.26473431,203.37,203.3,11.54473431]
[1753149874084,5.63721958,203.37,203.28,11.54473431]
[1753149874400,11.54473431,203.32,203.25,16.46478351]
[1753149874589,11.54473431,203.3,203.24,11.54473431]
[1753149874891,17.2100848,203.37,203.21,0.66]
[1753149874892,0.72,203.4,203.25,0.66]
[1753149875094,11.54473431,203.37,203.26,26.0]
[1753149875268,11.54473431,203.37,203.3,11.54473431]
[1753149875467,12.26473431,203.37,203.3,11.54473431]
[1753149875691,0.72,203.37,203.31,11.54473431]
[1753149876398,0.72,203.37,203.27,4.91956511]
[1753149876399,12.26473431,203.41,203.34,11.54473431]
[1753149876771,11.54473431,203.39,203.32,11.54473431]
[1753149876972,11.54473431,203.35,203.28,11.54473431]
[1753149877200,11.54473431,203.35,203.25,4.919808]
[1753149877201,11.54473431,203.32,203.25,11.54473431]
[1753149877367,0.72,203.34,203.2,0.66]
[1753149877368,11.54473431,203.29,203.2,4.92102262]
[1753149877571,0.72,203.28,203.2,11.54473431]
[1753149877789,17.18413985,203.28,203.21,11.54473431]
[1753149878097,17.18413985,203.28,203.11,39.16]
[1753149878098,11.54473431,203.26,203.16,4.92201985]
[1753149878278,11.54473431,203.26,203.17,11.54473431]
[1753149878279,11.54473431,203.24,203.17,11.54473431]
[1753149878468,0.69,203.24,203.2,11.54473431]
[1753149878998,39.14,203.27,203.22,11.54473431]
[1753149879185,39.83,203.27,203.24,11.54473431]
[1753149879493,39.14,203.27,203.24,11.54473431]
[1753149879671,39.14,203.27,203.21,11.54473431]
[1753149879876,16.78468397,203.25,203.05,12.31223836]
[1753149880198,11.54473431,203.15,203.08,11.54473431]
[1753149880491,11.54473431,203.15,203.03,11.54473431]
[1753149880492,11.54473431,203.1,203.03,11.54473431]
[1753149880788,0.69,203.12,203.07,11.54473431]
[1753149880990,39.81,203.12,203.07,11.54473431]
[1753149881370,39.81,203.12,203.03,11.54473431]
[1753149881371,11.54473431,203.1,203.03,11.54473431]
[1753149881596,12.23473431,203.11,203.04,11.54473431]
[1753149881802,16.78468397,203.04,202.92,0.03]
[1753149882091,40.84,203.06,202.92,0.03]
[1753149882092,11.54473431,202.93,202.92,0.03]
[1753149882283,26.0,203.02,202.92,0.03]
[1753149882471,11.54473431,202.95,202.92,0.03]
[1753149882671,12.23473431,202.96,202.92,0.03]
[1753149882907,0.69,202.95,202.92,0.03]
[1753149883234,12.23473431,202.95,202.92,0.03]
[1753149883395,11.54473431,202.98,202.92,0.03]
[1753149883600,51.41473431,202.99,202.92,16.50267955]
[1753149883799,11.54473431,202.97,202.92,0.03]
[1753149884020,51.41473431,202.99,202.92,0.03]
[1753149884221,12.23473431,202.97,202.92,0.03]
[1753149884521,0.69,202.98,202.92,0.03]
[1753149884728,11.54473431,202.96,202.92,0.03]
[1753149884914,0.69,202.98,202.92,16.50266216]
[1753149885111,0.69,202.98,202.93,11.54473431]
[1753149885422,0.69,202.98,202.92,16.50266216]
[1753149885625,0.69,202.98,202.93,11.54473431]
[1753149885832,0.69,202.98,202.92,4.95792785]
[1753149885833,11.54473431,202.94,202.92,0.03]
[1753149886032,29.01941828,202.93,202.92,0.03]
[1753149887228,0.69,202.93,202.8,0.2]
[1753149887433,11.54473431,202.99,202.81,0.72]
[1753149887724,11.54473431,202.97,202.9,11.54473431]
[1753149887938,39.82,202.99,202.91,11.54473431]
[1753149888138,11.54473431,202.98,202.91,11.54473431]
[1753149888433,11.54473431,202.99,202.92,11.54473431]
[1753149888630,39.8,203.0,202.96,11.54473431]
[1753149888805,39.8,203.02,202.97,11.54473431]
[1753149889436,0.69,203.01,202.88,0.72]
[1753149889630,11.54473431,202.98,202.9,11.54473431]
[1753149889834,39.78,202.98,202.94,11.54473431]
[1753149890008,0.69,203.05,202.97,11.54473431]
[1753149890206,39.78,203.04,202.95,0.72]
[1753149890519,39.8,203.09,203.03,11.54473431]
[1753149890729,39.8,203.09,203.06,11.54473431]
[1753149891032,40.47,203.09,202.98,0.72]
[1753149891243,39.78,203.09,203.05,11.54473431]
[1753149891723,40.47,203.09,203.03,4.92519631]
[1753149891908,40.47,203.09,203.05,11.54473431]
[1753149892406,0.69,203.08,202.98,0.72]
[1753149892734,11.54473431,203.07,202.95,4.927322]
[1753149893041,0.69,203.18,202.99,26.0]
[1753149893212,0.69,203.06,203.03,11.54473431]
[1753149893516,0.69,203.05,203.01,11.54473431]
[1753149893721,0.69,203.05,202.95,17.965627]
[1753149893722,0.69,203.05,203.0,11.54473431]
[1753149894542,40.08,203.06,203.0,11.54473431]
[1753149894705,51.62473431,203.06,202.98,11.54473431]
[1753149894908,11.54473431,203.04,202.97,11.54473431]
[1753149895109,16.78468397,203.05,202.97,11.54473431]
[1753149895438,11.54473431,203.04,202.95,0.72]
[1753149895639,21.70960661,203.05,202.95,12.26473431]
[1753149895640,11.54473431,203.02,202.95,12.26473431]
[1753149895853,11.54473431,203.04,202.96,11.54473431]
[1753149896134,11.54473431,203.04,202.97,11.54473431]
[1753149896513,4.92538048,203.03,202.97,11.54473431]
[1753149896916,16.47011479,203.03,202.96,11.54473431]
[1753149897326,16.46987712,203.04,202.97,11.54473431]
[1753149897624,39.98,203.03,202.98,11.54473431]
[1753149897830,11.54473431,203.02,202.92,0.03]
[1753149898028,7.2469,203.02,202.95,11.54473431]
[1753149898223,6.5569,203.02,202.96,11.54473431]
[1753149898817,56.45034181,203.03,202.94,4.92745737]
[1753149899034,4.9256075,203.03,202.97,11.54473431]
[1753149899208,39.9,203.02,202.99,11.54473431]
[1753149899907,39.9,203.02,202.97,11.54473431]
[1753149900111,40.59,203.02,202.93,11.54473431]
[1753149900337,11.54473431,203.01,202.93,11.54473431]
[1753149900527,4.92586572,203.01,202.94,11.54473431]
[1753149900727,16.47060003,203.01,202.92,5.67804046]
[1753149900938,51.42473431,203.0,202.93,11.54473431]
[1753149901120,39.84,202.99,202.93,11.54473431]
[1753149901439,39.84,202.98,202.95,11.54473431]
[1753149901613,39.84,203.03,202.97,11.54473431]
[1753149901813,39.84,203.03,202.96,0.72]
[1753149902121,11.54473431,203.02,202.95,11.54473431]
[1753149902527,0.69,203.03,202.95,11.54473431]
[1753149902840,39.82,203.02,202.96,11.54473431]
[1753149903340,39.82,203.02,202.93,5.64780339]
[1753149903543,2.3255,203.08,202.99,11.54473431]
[1753149903838,11.54473431,203.03,202.96,11.54473431]
[1753149904216,11.54473431,203.02,202.95,11.54473431]
[1753149904631,4.92586572,203.01,202.96,11.54473431]
[1753149904835,11.54473431,203.04,202.97,11.54473431]
[1753149905027,1.6355,203.08,202.99,11.54473431]
[1753149905232,0.06,203.11,202.95,27.6552]
[1753149905233,0.06,203.11,203.07,11.54473431]
[1753149905434,0.06,203.11,203.08,11.54473431]
[1753149905840,0.06,203.11,203.05,1.5792]
[1753149905841,0.06,203.11,203.05,2.2992]
[1753149906029,0.06,203.11,203.04,11.54473431]
[1753149906230,11.54473431,203.08,203.01,11.54473431]
[1753149906543,4.98406907,203.09,202.99,0.72]
[1753149906544,11.54473431,203.06,202.99,0.72]
[1753149906739,16.46954936,203.06,202.99,12.26473431]
[1753149907034,0.06,203.09,203.01,11.54473431]
[1753149907227,51.40473431,203.09,202.99,5.64630227]
[1753149907414,51.40473431,203.09,203.02,11.54473431]
[1753149907610,44.78408705,203.09,202.99,5.64630227]
[1753149907825,11.54473431,203.07,202.99,0.72]
[1753149908036,11.54473431,203.06,202.99,0.72]
[1753149908238,57.09390043,203.09,202.94,1.5792]
[1753149908239,0.72,203.08,202.96,0.67]
[1753149908428,44.78408705,203.09,203.01,11.54473431]
[1753149908738,39.82,203.09,203.01,0.67]
[1753149908941,11.54473431,203.08,203.01,0.67]
[1753149909144,39.82,203.09,203.01,0.67]
[1753149909145,0.06,203.09,203.01,5.59569499]
[1753149909329,39.8,203.09,203.03,11.54473431]
[1753149909642,39.8,203.09,203.01,5.59569499]
[1753149909823,11.60473431,203.09,203.01,0.67]
[1753149910033,11.54473431,203.07,203.01,0.67]
[1753149910232,0.06,203.09,202.99,0.67]
[1753149910448,11.54473431,203.06,202.99,0.67]
[1753149910621,11.54473431,203.06,202.94,11.54473431]
[1753149910622,11.54473431,203.01,202.94,11.54473431]
[1753149910824,39.68,203.0,202.94,11.54473431]
[1753149911923,39.68,203.0,202.92,0.03]
[1753149912255,39.68,203.0,202.92,11.57473431]
[1753149912256,51.22473431,203.0,202.92,11.57473431]
[1753149912540,39.68,203.0,202.92,0.03]
[1753149912735,4.92635105,202.99,202.93,11.54473431]
[1753149913118,4.92635105,202.99,202.92,0.03]
[1753149913322,5.64610784,203.01,202.92,11.57473431]
[1753149913538,11.54473431,202.99,202.92,0.03]
[1753149913935,11.54473431,202.97,202.92,0.03]
[1753149914139,39.62,202.96,202.92,0.03]
[1753149914341,39.62,202.97,202.93,11.54473431]
[1753149914539,4.92610784,203.01,202.96,11.54473431]
[1753149914848,51.16473431,203.0,202.92,0.7]
[1753149915155,0.72,203.17,202.99,11.54473431]
[1753149915351,11.60473431,203.09,203.0,0.67]
[1753149915527,0.06,203.09,203.02,11.54473431]
[1753149915727,0.06,203.09,203.04,11.54473431]
[1753149916234,0.06,203.09,203.06,11.54473431]
[1753149916435,0.06,203.09,203.08,11.54473431]
[1753149916631,0.06,203.09,203.05,0.67]
[1753149916975,0.06,203.09,203.06,0.67]
[1753149917157,0.06,203.09,203.07,12.21473431]
[1753149917327,0.06,203.09,203.02,17.2394599]
[1753149917328,0.06,203.09,203.06,11.54473431]
[1753149917722,0.06,203.09,203.03,0.67]
[1753149918030,0.06,203.09,203.07,11.54473431]
[1753149918346,0.06,203.09,203.03,11.54473431]
[1753149918548,0.06,203.09,203.01,0.67]
[1753149918734,0.06,203.09,202.97,26.0]
[1753149918930,11.54473431,203.07,202.96,5.59707922]
[1753149919147,11.54473431,203.07,203.0,11.54473431]
[1753149919328,11.54473431,203.08,203.01,11.54473431]
[1753149919749,0.06,203.09,203.01,0.67]
[1753149919927,11.54473431,203.07,203.0,11.54473431]
[1753149920135,11.54473431,203.06,202.96,4.92707922]
[1753149920347,11.54473431,203.07,203.0,11.54473431]
[1753149920938,16.84468397,203.09,203.0,11.54473431]
[1753149920939,0.06,203.09,203.03,11.54473431]
[1753149921137,0.06,203.09,203.04,11.54473431]
[1753149921866,0.06,203.09,203.0,0.67]
[1753149922041,0.06,203.09,203.04,11.54473431]
[1753149922042,4.98398955,203.09,203.04,11.54473431]
[1753149922938,4.98398955,203.09,203.03,11.54473431]
[1753149923151,0.06,203.09,203.0,0.67]
[1753149923559,0.06,203.09,203.04,11.54473431]
[1753149923863,0.06,203.09,203.05,0.67]
[1753149924064,0.06,203.09,203.08,11.54473431]
[1753149924365,0.06,203.14,203.08,38.03715109]
[1753149924569,6.0875,203.28,203.13,11.54473431]
[1753149924861,39.6,203.27,203.21,11.54473431]
[1753149925071,39.6,203.27,203.22,11.54473431]
[1753149925361,44.5195828,203.27,203.21,11.54473431]
[1753149925661,45.2395828,203.27,203.2,11.54473431]
[1753149925846,56.78431711,203.27,203.2,11.54473431]
[1753149926051,56.78431711,203.27,203.21,11.54473431]
[1753149926052,40.32,203.27,203.21,11.54473431]
[1753149926249,39.6,203.27,203.24,11.54473431]
[1753149926455,39.6,203.27,203.25,11.54473431]
[1753149926968,39.6,203.27,203.21,0.67]
[1753149927163,39.6,203.27,203.22,11.54473431]
[1753149927355,16.46377977,203.3,203.23,11.54473431]
[1753149927548,11.54473431,203.31,203.24,11.54473431]
[1753149927761,39.52,203.3,203.25,11.54473431]
[1753149927939,51.06473431,203.32,203.25,11.54473431]
[1753149928145,11.54473431,203.3,203.21,0.67]
[1753149928466,12.94166009,203.35,203.16,17.22780074]
[1753149928668,12.94166009,203.35,203.27,11.54473431]
[1753149928669,51.02473431,203.34,203.27,11.54473431]
[1753149929050,55.94266621,203.34,203.28,11.54473431]
[1753149929261,51.02473431,203.34,203.28,11.54473431]
[1753149929467,55.94262507,203.34,203.28,11.54473431]
[1753149929763,55.94262507,203.34,203.19,26.0]
[1753149929764,11.54473431,203.31,203.24,11.54473431]
[1753149929963,11.54473431,203.33,203.24,0.67]
[1753149930167,11.54473431,203.33,203.26,11.54473431]
[1753149930168,39.48,203.31,203.26,11.54473431]
[1753149930351,0.72,203.3,203.19,5.59150204]
[1753149930550,12.26473431,203.3,203.23,11.54473431]
[1753149930752,11.54473431,203.28,203.21,11.54473431]
[1753149930946,4.91980714,203.26,203.2,11.54473431]
[1753149931151,11.54473431,203.23,203.16,11.54473431]
[1753149931361,40.2,203.25,203.18,11.54473431]
[1753149931564,51.74473431,203.25,203.18,11.54473431]
[1753149931870,0.72,203.29,203.21,11.54473431]
[1753149932067,39.44,203.28,203.19,11.54473431]
[1753149932259,11.54473431,203.25,203.19,11.54473431]
[1753149932564,11.54473431,203.23,203.16,11.54473431]
[1753149932751,39.44,203.22,203.16,11.54473431]
[1753149933260,44.36093868,203.22,203.17,11.54473431]
[1753149933470,44.36093868,203.22,203.16,11.54473431]
[1753149933971,55.90567299,203.22,203.15,11.54473431]
[1753149934279,55.90567299,203.22,203.11,26.0]
[1753149934280,44.36093868,203.22,203.16,11.54473431]
[1753149935145,55.90567299,203.22,203.16,11.54473431]
[1753149935546,16.46500371,203.25,203.18,11.54473431]
[1753149935762,39.34,203.24,203.21,11.54473431]
[1753149935967,39.3,203.23,203.21,11.54473431]
[1753149936163,39.3,203.23,203.22,12.21473431]
[1753149936547,11.54473431,203.3,203.22,12.21473431]
[1753149936749,39.28,203.27,203.22,12.21473431]
[1753149937176,4.91787154,203.34,203.26,11.54473431]
[1753149937376,39.24,203.33,203.27,11.54473431]
[1753149937555,39.24,203.33,203.28,11.54473431]
[1753149937757,39.24,203.32,203.28,11.54473431]
[1753149938074,8.024,203.35,203.3,11.54473431]
[1753149939072,6.462,203.35,203.3,16.46354273]
[1753149939264,44.15739435,203.36,203.3,11.54473431]
[1753149939464,11.54473431,203.35,203.26,0.69]
[1753149939778,55.70212866,203.36,203.29,11.54473431]
[1753149939952,16.46212866,203.36,203.29,11.54473431]
[1753149940152,39.16,203.35,203.3,11.54473431]
[1753149940651,0.06,203.34,203.33,11.54473431]
[1753149940981,8.04216066,203.49,203.34,4.91787154]
[1753149941154,4.91519993,203.46,203.35,0.69]
[1753149941472,5.41532357,203.45,203.35,0.69]
[1753149941652,1.21,203.45,203.38,11.54473431]
[1753149941853,1.21,203.45,203.33,4.91808841]
[1753149941854,0.5,203.45,203.43,11.54473431]
[1753149942380,0.5,203.45,203.42,11.54473431]
[1753149942677,5.41533047,203.45,203.4,11.54473431]
[1753149942860,5.41533047,203.45,203.33,17.21337193]
[1753149942861,0.5,203.45,203.41,11.54473431]
[1753149943178,0.5,203.45,203.43,11.54473431]
[1753149943590,0.5,203.45,203.44,12.23473431]
[1753149943893,4.91255649,203.56,203.44,12.23473431]
[1753149944176,12.25473431,203.59,203.45,0.69]
[1753149944349,11.54473431,203.54,203.47,11.54473431]
[1753149944551,39.18,203.55,203.51,11.54473431]
[1753149944762,2.47786976,203.62,203.52,0.69]
[1753149945067,2.47786976,203.62,203.57,11.54473431]
[1753149945265,2.47786976,203.62,203.58,0.69]
[1753149945580,0.71,203.67,203.58,0.69]
[1753149945895,39.95,203.7,203.58,0.69]
[1753149946064,39.95,203.7,203.64,11.54473431]
[1753149946261,39.95,203.7,203.52,41.76489571]
[1753149946262,39.95,203.7,203.61,0.69]
[1753149946566,11.54473431,203.67,203.58,0.69]
[1753149946768,11.54473431,203.67,203.6,11.54473431]
[1753149946966,16.45487866,203.66,203.58,0.69]
[1753149947168,4.91014435,203.66,203.52,30.91328522]
[1753149947378,0.71,203.67,203.61,11.54473431]
[1753149947587,1.0,203.68,203.65,11.54473431]
[1753149948077,5.90967409,203.68,203.64,11.54473431]
[1753149948281,5.90967409,203.68,203.6,0.69]
[1753149948282,5.90968396,203.68,203.6,0.69]
[1753149948584,5.90968396,203.68,203.64,11.54473431]
[1753149948890,5.90968396,203.68,203.63,11.54473431]
[1753149949378,5.90968396,203.68,203.6,11.54473431]
[1753149949379,12.25473431,203.67,203.6,11.54473431]
[1753149949575,12.25473431,203.67,203.59,11.54473431]
[1753149949576,11.54473431,203.65,203.59,11.54473431]
[1753149949778,0.71,203.67,203.57,0.69]
[1753149949779,12.25473431,203.67,203.6,11.54473431]
[1753149950173,11.54473431,203.66,203.57,0.69]
[1753149950359,0.71,203.66,203.58,11.54473431]
[1753149950682,5.90968396,203.68,203.6,11.54473431]
[1753149950894,5.90968396,203.68,203.62,11.54473431]
[1753149951269,17.45441827,203.68,203.62,11.54473431]
[1753149951465,11.54473431,203.67,203.6,11.54473431]
[1753149951670,11.54473431,203.66,203.58,0.69]
[1753149951881,11.54473431,203.67,203.6,11.54473431]
[1753149952081,11.54473431,203.66,203.59,11.54473431]
[1753149952287,11.54473431,203.66,203.6,11.54473431]
[1753149952489,12.25473431,203.67,203.6,11.54473431]
[1753149952796,11.54473431,203.66,203.6,11.54473431]
[1753149952996,11.54473431,203.66,203.59,11.54473431]
[1753149953197,5.62038546,203.65,203.54,4.91301998]
[1753149953491,1.0,203.68,203.59,11.54473431]
[1753149953697,1.0,203.68,203.53,4.91326119]
[1753149953698,5.90969156,203.68,203.64,11.54473431]
[1753149953990,5.90969156,203.68,203.62,11.54473431]
[1753149954188,5.90969156,203.68,203.63,11.54473431]
[1753149954594,1.0,203.68,203.63,11.54473431]
[1753149954891,1.0,203.68,203.64,0.69]
[1753149955070,1.0,203.68,203.67,11.54473431]
[1753149955474,1.0,203.68,203.67,12.23473431]
[1753149956092,4.90727098,203.78,203.67,12.23473431]
[1753149956396,5.61727098,203.78,203.72,11.54473431]
[1753149956591,5.61727098,203.78,203.73,11.54473431]
[1753149956790,0.71,203.78,203.72,11.54473431]
[1753149956990,38.96,203.8,203.75,11.54473431]
[1753149957200,39.67,203.8,203.76,11.54473431]
[1753149957375,18.29598664,203.84,203.66,11.54473431]
[1753149957376,18.29598664,203.84,203.75,11.54473431]
[1753149957692,18.29598664,203.84,203.71,4.90874142]
[1753149957693,0.71,203.8,203.71,4.90874142]
[1753149957901,0.71,203.8,203.75,11.54473431]
[1753149958098,0.71,203.79,203.68,4.90955742]
[1753149958307,12.25473431,203.79,203.72,11.54473431]
[1753149958469,12.25473431,203.78,203.63,4.91086775]
[1753149958669,0.71,203.77,203.71,11.54473431]
[1753149959099,50.44473431,203.76,203.63,4.91086775]
[1753149959273,17.16278028,203.75,203.68,11.54473431]
[1753149959470,0.71,203.75,203.7,11.54473431]
[1753149959700,0.71,203.75,203.71,11.54473431]
[1753149959997,0.71,203.75,203.73,11.54473431]
[1753149960292,11.54473431,203.79,203.58,0.52120738]
[1753149960293,12.25473431,203.74,203.58,0.03]
[1753149960482,0.71,203.74,203.59,4.9118326]
[1753149960683,11.54473431,203.71,203.64,11.54473431]
[1753149960978,11.54473431,203.71,203.59,4.9118326]
[1753149960979,0.71,203.7,203.59,4.9118326]
[1753149961185,38.86,203.71,203.69,11.54473431]
[1753149961370,38.86,203.71,203.59,30.9118326]
[1753149961576,44.47896048,203.71,203.67,11.54473431]
[1753149961795,0.71,203.7,203.67,11.54473431]
[1753149962022,0.71,203.7,203.59,30.9118326]
[1753149962023,0.71,203.69,203.59,4.9118326]
[1753149962295,4.90896048,203.71,203.59,4.9118326]
[1753149962499,4.90896048,203.71,203.58,0.03]
[1753149962500,11.54473431,203.68,203.62,11.54473431]
[1753149962675,0.71,203.67,203.6,11.54473431]
[1753149962870,0.71,203.67,203.64,11.54473431]
[1753149963099,0.71,203.71,203.66,11.54473431]
[1753149963398,38.82,203.75,203.64,12.27597209]
[1753149963582,38.82,203.75,203.62,4.91110892]
[1753149963583,12.25473431,203.74,203.62,4.91110892]
[1753149963790,43.72797546,203.75,203.58,0.03]
[1753149963791,16.78468397,203.72,203.58,0.03]
[1753149963985,11.54473431,203.66,203.58,0.03]
[1753149964288,38.88,203.66,203.58,0.03]
[1753149964482,11.54473431,203.59,203.58,0.03]
[1753149964684,67.22941828,203.59,203.49,0.03]
[1753149964995,11.54473431,203.52,203.49,0.03]
[1753149965197,11.54473431,203.51,203.49,0.03]
[1753149965389,16.78468397,203.49,203.37,0.2]
[1753149965700,11.54473431,203.46,203.4,11.54473431]
[1753149965886,11.54473431,203.47,203.41,11.54473431]
[1753149966076,12.25473431,203.47,203.41,11.54473431]
[1753149966279,0.71,203.51,203.46,11.54473431]
[1753149966496,0.71,203.55,203.5,11.54473431]
[1753149966799,1.5288,203.58,203.37,34.19467602]
[1753149966800,11.54473431,203.51,203.37,17.40999205]
[1753149966996,11.54473431,203.49,203.43,11.54473431]
[1753149967297,11.54473431,203.54,203.48,16.45922222]
[1753149967484,0.71,203.55,203.51,11.54473431]
[1753149967696,38.96,203.58,203.54,11.54473431]
[1753149967882,38.96,203.58,203.56,11.54473431]
[1753149968083,0.71,203.62,203.48,4.91448791]
[1753149968084,0.71,203.62,203.57,11.54473431]
[1753149968283,0.7,203.61,203.57,11.54473431]
[1753149968591,80.3846,203.68,203.6,11.54473431]
[1753149968777,0.7,203.67,203.64,11.54473431]
[1753149968983,74.3,203.68,203.65,11.54473431]
[1753149968984,38.96,203.68,203.65,11.54473431]
[1753149969183,0.7,203.67,203.64,11.54473431]
[1753149969480,11.54473431,203.65,203.54,4.9130392]
[1753149969680,11.54473431,203.6,203.54,16.45777351]
[1753149969901,0.7,203.6,203.55,11.54473431]
[1753149970087,0.7,203.64,203.58,11.54473431]
[1753149970295,0.7,203.64,203.62,11.54473431]
[1753149970498,38.96,203.68,203.63,11.54473431]
[1753149970690,0.7,203.68,203.65,11.54473431]
[1753149971008,41.306,203.73,203.67,11.54473431]
[1753149971199,39.64,203.72,203.57,26.0]
[1753149971498,39.39469,203.72,203.66,11.54473431]
[1753149971679,50.48473431,203.72,203.66,11.54473431]
[1753149971887,11.54473431,203.68,203.6,4.91159135]
[1753149972094,11.54473431,203.67,203.6,16.45632566]
[1753149972299,16.78468397,203.7,203.59,11.54473431]
[1753149972584,11.54473431,203.66,203.59,11.54473431]
[1753149972783,11.54473431,203.64,203.57,11.54473431]
[1753149973002,11.54473431,203.63,203.56,11.54473431]
[1753149973195,38.94,203.65,203.53,4.91328059]
[1753149973395,11.54473431,203.62,203.56,4.91255649]
[1753149973591,11.54473431,203.63,203.56,16.4572908]
[1753149973795,0.7,203.61,203.56,16.4572908]
[1753149973998,0.7,203.6,203.56,16.4572908]
[1753149974204,0.7,203.59,203.54,16.45758589]
[1753149974404,0.7,203.58,203.55,11.54473431]
[1753149974613,0.7,203.62,203.57,11.54473431]
[1753149974811,0.7,203.61,203.57,11.54473431]
[1753149975503,38.94,203.65,203.58,11.54473431]
[1753149975814,42.78468397,203.56,203.39,0.66]
[1753149975987,42.78468397,203.56,203.38,4.91690431]
[1753149975988,11.54473431,203.49,203.38,4.91690431]
[1753149976194,10.0,203.59,203.37,0.2]
[1753149976195,16.78468397,203.47,203.41,11.54473431]
[1753149976510,0.7,203.46,203.37,5.1171369]
[1753149976813,39.38,203.47,203.38,0.66]
[1753149976994,0.7,203.51,203.45,11.54473431]
[1753149977518,17.15856875,203.51,203.44,11.54473431]
[1753149977806,17.15850254,203.51,203.39,4.91666256]
[1753149977986,11.54473431,203.45,203.38,11.54473431]
[1753149978192,12.24473431,203.45,203.37,0.2]
[1753149978392,0.7,203.45,203.39,11.54473431]
[1753149978602,0.7,203.45,203.41,11.54473431]
[1753149978807,0.7,203.44,203.4,11.54473431]
[1753149979397,0.7,203.44,203.39,11.54473431]
[1753149980309,4.91545465,203.44,203.38,11.54473431]
[1753149980513,0.7,203.43,203.38,11.54473431]
[1753149980722,0.7,203.47,203.41,11.54473431]
[1753149980894,0.7,203.47,203.43,11.54473431]
[1753149981216,11.54473431,203.5,203.43,11.54473431]
[1753149981390,11.54473431,203.49,203.42,11.54473431]
[1753149981814,17.15892599,203.5,203.44,11.54473431]
[1753149982010,39.24,203.51,203.45,11.54473431]
[1753149982219,0.7,203.55,203.42,5.57591868]
[1753149982419,11.54473431,203.53,203.47,11.54473431]
[1753149982624,11.54473431,203.54,203.47,11.54473431]
[1753149982825,5.61280134,203.55,203.42,5.57591868]
[1753149983007,11.54473431,203.51,203.44,11.54473431]
[1753149983325,11.54473431,203.49,203.43,11.54473431]
[1753149983495,11.54473431,203.48,203.42,11.57473431]
[1753149983701,12.24473431,203.48,203.42,11.57473431]
[1753149983911,4.91472944,203.47,203.42,11.57473431]
[1753149984117,0.7,203.46,203.42,0.03]
[1753149984419,12.24473431,203.46,203.42,0.03]
[1753149984715,12.24473431,203.45,203.42,0.03]
[1753149985130,0.7,203.44,203.42,0.03]
[1753149985306,28.32941828,203.43,203.42,0.03]
[1753149985613,28.32941828,203.43,203.37,0.2]
[1753149985614,28.32941828,203.38,203.37,0.2]
[1753149985818,16.78468397,203.37,203.29,11.54473431]
[1753149985993,44.07738788,203.36,203.31,11.54473431]
[1753149986196,0.7,203.36,203.31,11.54473431]
[1753149986426,0.7,203.35,203.3,11.54473431]
[1753149986613,0.7,203.35,203.25,4.9200492]
[1753149986803,0.7,203.35,203.31,11.54473431]
[1753149986999,5.61653566,203.4,203.34,11.54473431]
[1753149987197,39.12,203.39,203.35,11.54473431]
[1753149988131,39.12,203.39,203.28,0.67]
[1753149988292,39.12,203.39,203.23,4.92053338]
[1753149988293,11.54473431,203.33,203.23,4.92053338]
[1753149988493,51.30473431,203.32,203.25,11.54473431]
[1753149988709,39.76,203.32,203.21,5.79079127]
[1753149988910,39.76,203.32,203.27,11.54473431]
[1753149989116,39.06,203.32,203.31,11.54473431]
[1753149989324,39.76,203.37,203.31,11.54473431]
[1753149989817,11.54473431,203.32,203.25,11.54473431]
[1753149990028,0.7,203.33,203.25,11.54473431]
[1753149990228,17.16294137,203.33,203.27,11.54473431]
[1753149990627,5.61820706,203.33,203.27,11.54473431]
[1753149990798,16.46253092,203.35,203.29,11.54473431]